Cogmind - Beta 12 @@@ ROGUE MODE // 2023.03.12 @ 14:37:48 Player: Dizzar Result: Destroyed by G-67 Veteran with Plasma Rifle Performance ------------- Evolutions (5) 2500 Regions Visited (14) 2800 Robots Destroyed (57) 285 Value Destroyed (1998) 1998 Prototype IDs (31) 620 Alien Tech Used (0) 0 Bonus (1472) 1472 TOTAL SCORE: 9675 Bonus ------- High Alert Combat Kills 39 Follower Combat Kills 225 Entered Garrisons 200 Aligned with FarCom 300 Met Warlord at Base 500 MAIN.C Attacked Warlord 500 Warlord Defense Kills 100 Friendly Fire -392 Cogmind --------- Core Integrity 0/1000 Matter 288/300 Energy 155/155 System Corruption 11% Temperature Warm (120) Movement Hovering (156) Ox2 Location -4/Proximity Caves Parts ------- > --- POWER (2) -------- Backup Power III Angular-Nuclear Engine > --- PROPULSION (3) --- Hovering Antigrav Exoskeleton > --- UTILITY (8) ------ Armored Scrap Engine Hacking Suite > --- WEAPON (4) ------- Backup Laser III Hyp. Entropic Rail Construct/C Accelerated Autocannon Construct/C > --- INVENTORY (5) ---- Small Storage Unit Authchip [R/Combat] Authchip [R/Combat] Advanced Beam Cannon Signal Generator Peak State ------------ > --- POWER ------------ Angular-Nuclear Engine > --- PROPULSION ------- Hovering Antigrav Exoskeleton > --- UTILITY ---------- Armored Scrap Engine Large Storage Unit Triangulator Experimental Targeting Computer Target Analyzer Hacking Suite Advanced System Shield > --- WEAPON ----------- Heavy Ion Cannon Matter Neutralizer Hyp. Entropic Rail Construct/C Accelerated Autocannon Construct/C > --- INVENTORY -------- Compact Wheel Small Storage Unit High-capacity Battery Authchip [R/Combat] Authchip [R/Combat] Authchip [R/Combat] Mini Drone Bay Advanced Beam Cannon [Rating: 80] Favorites ----------- Power Backup Power III Engine Backup Power III Power Core Light Nuclear Core Reactor Micro Antimatter Reactor Propulsion Constructs Leg Aluminum Leg Wheel Compact Wheel Hover Unit Constructs Utility Armored Scrap Engine Device Armored Scrap Engine Storage Large Storage Unit Processor Experimental Targeting Computer Hackware Hacking Suite Protection Insulated Plating Weapon Heavy Ion Cannon Energy Gun Backup Laser III Energy Cannon Heavy Ion Cannon Ballistic Gun Light Assault Rifle Ballistic Cannon Constructs Build | -11 -10 -10 -10 -9 -8 -8 -8 -6 -6 -5 -5 -5 -5 -4 ------- Run | Jun Mat Min Exi Min Mat Sto Rec Fac Gar Fac Upp Upp War Pro Slots Evolved 10 | . . . . . 4 . . 4 . 2 . . . . Power 1 | . . . . . . . . 1 . . . . . . Propulsion 1 | . . . . . 1 . . . . . . . . . Utility 6 | . . . . . 2 . . 2 . 2 . . . . Weapon 2 | . . . . . 1 . . 1 . . . . . . Parts Attached 49 | . 1 1 1 2 16 3 1 6 6 12 . . . . Power 4 | . 1 . . . 1 . . . 1 1 . . . . Engine 2 | . 1 . . . 1 . . . . . . . . . Core 1 | . . . . . . . . . 1 . . . . . Reactor 1 | . . . . . . . . . . 1 . . . . Propulsion 9 | . . . . 2 . . . 2 . 5 . . . . Treads . | . . . . . . . . . . . . . . . Leg . | . . . . . . . . . . . . . . . Wheel 7 | . . . . 2 . . . 2 . 3 . . . . Hover 2 | . . . . . . . . . . 2 . . . . Flight . | . . . . . . . . . . . . . . . Utility 14 | . . . . . 5 . 1 2 1 5 . . . . Device 5 | . . . . . 1 . 1 1 . 2 . . . . Storage 1 | . . . . . 1 . . . . . . . . . Processor 2 | . . . . . . . . . 1 1 . . . . Hackware 5 | . . . . . 2 . . 1 . 2 . . . . Protection 1 | . . . . . 1 . . . . . . . . . Artifact . | . . . . . . . . . . . . . . . Weapon 22 | . . 1 1 . 10 3 . 2 4 1 . . . . Energy Gun 1 | . . . . . 1 . . . . . . . . . Energy Cannon 16 | . . . 1 . 5 3 . 2 4 1 . . . . Ballistic Gun 3 | . . 1 . . 2 . . . . . . . . . Ballistic Cannon 2 | . . . . . 2 . . . . . . . . . Launcher . | . . . . . . . . . . . . . . . Special Weapon . | . . . . . . . . . . . . . . . Impact Weapon . | . . . . . . . . . . . . . . . Slashing Weapon . | . . . . . . . . . . . . . . . Piercing Weapon . | . . . . . . . . . . . . . . . Special Melee Weapon . | . . . . . . . . . . . . . . . Unidentified Prototypes 2 | . . . . . 1 . . . . 1 . . . . Corrupted Parts 3 | . . . . . . . . . 1 2 . . . . System Corruption 7 | . . . . . . . . . 5 2 . . . . Parts Lost 26 | . . . . . . . . . 6 16 1 . 3 . Power 4 | . . . . . . . . . 1 2 . . 1 . Propulsion 8 | . . . . . . . . . 1 7 . . . . Utility 8 | . . . . . . . . . 2 3 1 . 2 . Weapon 6 | . . . . . . . . . 2 4 . . . . Highest Loss Streak 16 | . . . . . . . . . 5 16 1 . 3 . To Critical Strikes . | . . . . . . . . . . . . . . . Average Slot Usage (%) 68 | . 85 85 84 66 83 88 79 71 62 63 28 23 65 54 Engine 5 | . 14 14 14 14 9 9 9 6 . . . . 9 10 Core 2 | . . . . . . . . . 7 5 . . . . Leg 5 | . 28 28 28 2 . . . 3 6 4 . . . . Wheel 4 | . . . . 25 18 18 18 11 . . . . . . Hover 2 | . . . . . . . . . . . . . 10 8 Device 5 | . . . . . 6 9 9 8 6 7 10 5 5 5 Storage 5 | . 14 14 14 14 9 9 9 6 6 4 . . . . Processor 3 | . . . . . . . . . 2 7 5 5 4 . Hackware 8 | . . . . . 9 18 9 12 6 10 11 11 10 5 Energy Gun 4 | . 14 1 . . 2 . . 2 1 . . . 15 12 Energy Cannon 11 | . . . . 9 10 25 25 17 18 17 . . 3 5 Ballistic Gun 3 | . 14 26 27 . 4 . . . . . . . . . Naked Turns . | . . . . . . . . . . . . . . . Heaviest Build 67 | 11 11 11 26 26 57 57 52 53 67 60 3 1 26 31 Greatest Support 34 | 20 20 20 20 32 32 32 32 32 16 34 3 3 18 18 Greatest Overweight (x) 7 | . . . 1 1 1 1 1 3 4 7 . . 1 3 Average Overweight (x) . | . . . . . . 1 1 1 2 1 . . . 1 Largest Inventory Capacity 15 | . 8 8 8 8 15 15 15 15 15 15 5 5 5 5 Average Capacity 11 | . 8 8 8 8 14 15 15 15 15 14 5 5 5 5 Most Carried 15 | . 7 7 8 8 15 15 14 10 8 8 5 5 5 5 Average Carried 7 | . 6 7 7 7 11 13 10 6 7 7 5 5 5 5 Final Capacity 15 | 8 8 8 8 8 15 15 15 15 15 5 5 5 5 5 Final Carried 13 | 6 7 7 8 8 13 13 10 7 7 5 5 5 5 5 Scrap Engine Consumption 95 | . . . . . . . 9 20 11 22 . 1 31 1 Constructs Created 11 | . . . . . . . 1 1 4 1 . . 3 1 Constructs Modified 15 | . . . . . . . . 1 4 9 . . . 1 Class Distribution -------------------- 26% | Mutant 20% | Hacker-Gunner 19% | Skirmisher 17% | Hacker-Skirmisher 14% | Hacker-Mutant Dominant Class ---------------- Mutant | -10/Materials Mutant | -10/Mines Mutant | -10/Exiles Mutant | -9/Mines Skirmisher | -8/Materials Hacker-Skirmisher | -8/Storage Skirmisher | -8/Recycling Hacker-Skirmisher | -6/Factory Mutant | -6/Garrison Hacker-Mutant | -5/Factory Hacker-Mutant | -5/Upper Caves Hacker-Mutant | -5/Upper Caves Hacker-Gunner | -5/Warlord Gunner | -4/Proximity Caves Resources | -11 -10 -10 -10 -9 -8 -8 -8 -6 -6 -5 -5 -5 -5 -4 ----------- Run | Jun Mat Min Exi Min Mat Sto Rec Fac Gar Fac Upp Upp War Pro Matter Collected 875 | 197 17 19 . 30 60 160 14 74 164 111 6 19 4 . Remotely . | . . . . . . . . . . . . . . . Salvage Created 2324 | . 55 78 . 10 196 599 154 374 378 328 . . 58 94 Parts 125 | . 6 8 . 4 8 24 8 11 21 30 . . 2 3 Haulers Intercepted 1 | . . . . . . . . 1 . . . . . . Recyclers Shooed 2 | . . . . . . . . 2 . . . . . . Parts Field Recycled . | . . . . . . . . . . . . . . . Retrieved Matter . | . . . . . . . . . . . . . . . Parts Self-Destructed 3 | . . . . . . . . . . . . 1 . 2 Prevented . | . . . . . . . . . . . . . . . Kills | -11 -10 -10 -10 -9 -8 -8 -8 -6 -6 -5 -5 -5 -5 -4 ------- Run | Jun Mat Min Exi Min Mat Sto Rec Fac Gar Fac Upp Upp War Pro Combat Hostiles Destroyed 46 | . 3 3 . 4 4 10 1 3 10 5 . . 1 2 Guns 7 | . 3 3 . . 1 . . . . . . . . . Cannons 24 | . . . . . 1 4 1 1 9 5 . . 1 2 AOE 12 | . . . . 4 1 5 . 2 . . . . . . Classes Destroyed 14 | . 1 1 . . 4 3 1 2 1 1 . . . . Worker 2 | . . 1 . . . . . . . 1 . . . . Builder 2 | . . . . . 1 . . . . 1 . . . . Hauler 1 | . . . . . . . . 1 . . . . . . Recycler 2 | . . . . . . . 1 1 . . . . . . Mechanic 2 | . . . . . . 2 . . . . . . . . Watcher 1 | . . . . . . . . 1 . . . . . . Swarmer 18 | . 3 3 . 4 . . . 2 6 . . . . . Grunt 12 | . . . . . 2 5 . 1 2 . . . 1 1 Brawler 4 | . . . . . 1 2 . . . . . . . 1 Duelist 1 | . . . . . . 1 . . . . . . . . Protector 1 | . . . . . . 1 . . . . . . . . Sentry 3 | . . . . . 1 1 1 . . . . . . . Hunter 1 | . . . . . . . . . . 1 . . . . Programmer 6 | . . . . . . . . . 2 4 . . . . Thug 1 | . . . . . . 1 . . . . . . . . Best Kill Streak 10 | . 3 3 . 4 2 10 2 6 5 4 . . 1 1 Combat Bots Only 9 | . 3 3 . 4 2 9 1 3 5 2 . . 1 1 Max Kills in Single Turn 5 | . 1 1 . 4 2 5 1 5 1 2 . . 1 1 Gunslinging . | . . . . . . . . . . . . . . . Exploded 4 | . . . . 4 1 3 . 2 . . . . . . Melee . | . . . . . . . . . . . . . . . Uniques/NPCs Destroyed . | . . . . . . . . . . . . . . . Combat | -11 -10 -10 -10 -9 -8 -8 -8 -6 -6 -5 -5 -5 -5 -4 -------- Run | Jun Mat Min Exi Min Mat Sto Rec Fac Gar Fac Upp Upp War Pro Damage Taken 5580 | . 119 172 . . 93 321 . 87 1204 2915 173 25 331 140 Core 1500 | . 17 58 . . 14 74 . 13 312 844 104 25 17 22 Absorbed by Shields . | . . . . . . . . . . . . . . . Regen/Repaired (Parts) 778 | . . . . . . . . . 115 278 . . 200 185 Core Remaining (%) 66 | 100 . . . 70 . . 84 . 12 . . . . . Volleys Fired 140 | . 4 8 . 1 14 12 2 17 33 41 . . 2 6 Largest 4 | . 2 2 . 1 3 3 3 3 4 4 . . 4 4 Hottest 299 | . 60 60 . 100 195 195 183 218 216 299 . . 199 199 Shots Fired 288 | . 8 16 . 1 41 33 6 30 60 66 . . 8 19 Gun 53 | . 8 16 . . 9 . . 5 2 . . . 6 7 Cannon 235 | . . . . 1 32 33 6 25 58 66 . . 2 12 Launcher . | . . . . . . . . . . . . . . . Special . | . . . . . . . . . . . . . . . Kinetic 32 | . 4 9 . . 12 . . . 1 . . . . 6 Thermal 195 | . . . . 1 26 33 6 30 34 52 . . 6 7 Explosive . | . . . . . . . . . . . . . . . Electromagnetic 53 | . 4 7 . . 3 . . . 25 14 . . . . Entropic 8 | . . . . . . . . . . . . . 2 6 Robot Hit Streak 8 | . 4 6 . . 5 6 8 3 3 6 . . 3 4 Robot Miss Streak 5 | . 1 3 . 1 3 4 . 4 5 3 . . 2 3 Penetration Max 1 | . . . . . . . . . . . . . . 1 Secondary Targets 1 | . . 1 . . . . . . . . . . . . Max Gunslinging Chain 1 | . . 1 . . . . . . . . . . . . Shots Hit Robots 118 | . 5 9 . . 15 12 4 9 22 28 . . 4 10 Core Hits 79 | . 3 5 . 4 8 13 2 13 11 14 . . 1 5 Critical Kills 2 | . . . . . 1 1 . . . . . . . . Critical Parts Destroyed 1 | . . . . . . . . . . . . . . 1 Critical Strikes 5 | . 1 . . . 1 1 . . 1 . . . . 1 Meltdown 2 | . . . . . 1 1 . . . . . . . . Corrupt 2 | . 1 . . . . . . . 1 . . . . . Detonate 1 | . . . . . . . . . . . . . . 1 Melee Attacks . | . . . . . . . . . . . . . . . Impact . | . . . . . . . . . . . . . . . Slashing . | . . . . . . . . . . . . . . . Piercing . | . . . . . . . . . . . . . . . Sneak Attacks . | . . . . . . . . . . . . . . . Combat Hostiles . | . . . . . . . . . . . . . . . Follow-up Attacks . | . . . . . . . . . . . . . . . Damage Inflicted 5394 | . 53 88 . 199 550 1286 106 702 779 1006 . . 89 536 Guns 303 | . 53 88 . . 45 . . 52 12 . . . 27 26 Cannons 3507 | . . . . . 336 632 106 319 767 938 . . 62 347 Explosions 1573 | . . . . 199 169 654 . 331 . 57 . . . 163 Melee . | . . . . . . . . . . . . . . . Ramming 11 | . . . . . . . . . . 11 . . . . Kinetic 195 | . 10 44 . . 57 . . . 12 . . . . 72 Thermal 4220 | . . . . 199 463 1286 106 702 454 794 . . 27 189 Explosive 57 | . . . . . . . . . . 57 . . . . Electromagnetic 574 | . 43 44 . . 30 . . . 313 144 . . . . Impact . | . . . . . . . . . . . . . . . Slashing . | . . . . . . . . . . . . . . . Piercing . | . . . . . . . . . . . . . . . Entropic 337 | . . . . . . . . . . . . . 62 275 Highest Corruption 11 | . . . . . . . . . 6 8 8 8 11 11 Average Corruption 6 | . . . . . . . . . 5 6 8 8 9 11 Corruption Purged . | . . . . . . . . . . . . . . . Corruption Blocked . | . . . . . . . . . . . . . . . Effects 41 | . . . . . . . . . 21 4 6 3 2 5 Message Errors 5 | . . . . . . . . . 2 1 1 1 . . Matter Fused 8 | . . . . . . . . . 4 . 4 . . . Heat Flow Errors 4 | . . . . . . . . . 3 1 . . . . Energy Discharges 9 | . . . . . . . . . 6 . . 1 1 1 Parts Rejected 1 | . . . . . . . . . . . . . . 1 Parts Fused 1 | . . . . . . . . . . . . . . 1 Data Loss (minor) 8 | . . . . . . . . . 3 2 1 1 . 1 Data Loss (major) 3 | . . . . . . . . . 2 . . . 1 . Misfires 1 | . . . . . . . . . . . . . . 1 Alerts 1 | . . . . . . . . . 1 . . . . . Overload Shots . | . . . . . . . . . . . . . . . Overflow Damage 184 | . . . . . 14 102 . . 25 28 . . . 15 Projectiles 165 | . . . . . . 102 . . 25 28 . . . 10 Explosions 19 | . . . . . 14 . . . . . . . . 5 Melee . | . . . . . . . . . . . . . . . Knockbacks 1 | . . . . . . . . . . . . . . 1 Impact . | . . . . . . . . . . . . . . . Kinetic 1 | . . . . . . . . . . . . . . 1 Secondary . | . . . . . . . . . . . . . . . Self-Inflicted Damage 79 | . . . . . . . . . 78 1 . . . . Shots 1 | . . . . . . . . . 1 . . . . . Rammed 1 | . . . . . . . . . . 1 . . . . Targets Rammed 2 | . . . . . . . . . . 2 . . . . Kicked 1 | . . . . . . . . . . 1 . . . . Crushed . | . . . . . . . . . . . . . . . Highest Temperature 581 | . 20 40 . 20 204 227 111 126 581 518 . . 213 320 Average Temperature 141 | . 15 19 . 10 75 90 60 35 193 215 . . 112 131 Received Heat Transfer 570 | . . 27 . . 54 90 . . 162 117 33 9 45 33 Effects 18 | . . . . . . 3 . . 6 6 . . 1 2 Shutdowns 4 | . . . . . . . . . 3 1 . . . . Energy Bleed 5 | . . . . . . . . . . 4 . . 1 . Interference 6 | . . . . . . 3 . . 1 . . . . 2 Short Circuit 1 | . . . . . . . . . 1 . . . . . Damage (minor) 1 | . . . . . . . . . . 1 . . . . Damage (core) 1 | . . . . . . . . . 1 . . . . . Siege Activations . | . . . . . . . . . . . . . . . Robots Corrupted 1 | . . . . . . . . . 1 . . . . . Combat Hostiles 1 | . . . . . . . . . 1 . . . . . Parts Fried . | . . . . . . . . . . . . . . . Impact Corruptions . | . . . . . . . . . . . . . . . Robots Melted 2 | . . . . . 1 1 . . . . . . . . Combat Hostiles 2 | . . . . . 1 1 . . . . . . . . Parts Melted 13 | . . . . 1 1 5 . 1 4 1 . . . . Heat Transferred 4788 | . . . . 240 536 1273 148 850 592 851 . . 74 224 Parts Sabotaged . | . . . . . . . . . . . . . . . Parts Stolen . | . . . . . . . . . . . . . . . Parts Stripped . | . . . . . . . . . . . . . . . Power Chain Reactions . | . . . . . . . . . . . . . . . Missiles Intercepted . | . . . . . . . . . . . . . . . Alert | -11 -10 -10 -10 -9 -8 -8 -8 -6 -6 -5 -5 -5 -5 -4 ------- Run | Jun Mat Min Exi Min Mat Sto Rec Fac Gar Fac Upp Upp War Pro Peak Influence 466 | . 85 123 . 99 186 404 203 319 466 259 . . . . Initial 244 | . . 33 . . 38 17 157 84 223 244 . . . . Average 156 | . 26 103 . 99 85 201 179 151 356 65 . . . . Maximum Alert Level 2 | . . . . . . 2 1 1 2 1 . . . . Low Security (%) 69 | . 100 100 . 100 100 48 89 80 . 92 . . . . Level 1 24 | . . . . . . 35 10 19 80 7 . . . . Level 2 5 | . . . . . . 15 . . 19 . . . . . Level 3 . | . . . . . . . . . . . . . . . Level 4 . | . . . . . . . . . . . . . . . Level 5 . | . . . . . . . . . . . . . . . High Security . | . . . . . . . . . . . . . . . Max Security . | . . . . . . . . . . . . . . . Squads Dispatched 12 | . 2 . . . 2 4 . 1 . 3 . . . . Investigation 3 | . . . . . 1 1 . . . 1 . . . . Extermination 2 | . . . . . . . . . . 2 . . . . Reinforcement 5 | . 2 . . . 1 1 . 1 . . . . . . Assault 2 | . . . . . . 2 . . . . . . . . Garrison . | . . . . . . . . . . . . . . . Intercept . | . . . . . . . . . . . . . . . Searches Triggered . | . . . . . . . . . . . . . . . Construction Impeded . | . . . . . . . . . . . . . . . Haulers Reinforced 1 | . . . . . . . . 1 . . . . . . Active Scanning Responses . | . . . . . . . . . . . . . . . Cargo Convoy Interrupts . | . . . . . . . . . . . . . . . Stealth | -11 -10 -10 -10 -9 -8 -8 -8 -6 -6 -5 -5 -5 -5 -4 --------- Run | Jun Mat Min Exi Min Mat Sto Rec Fac Gar Fac Upp Upp War Pro Distress Signals 4 | . 1 . . . . 1 . 1 . 1 . . . . Communications Jammed . | . . . . . . . . . . . . . . . Distress Signals . | . . . . . . . . . . . . . . . Times Spotted 99 | . 7 5 . . 8 22 . 3 10 17 5 1 16 5 Peak Tracking Total 10 | . 8 3 . . 3 10 . 4 4 6 4 1 10 4 Tactical Retreats 6 | . . . . . . . . . . . 2 1 3 . Traps | -11 -10 -10 -10 -9 -8 -8 -8 -6 -6 -5 -5 -5 -5 -4 ------- Run | Jun Mat Min Exi Min Mat Sto Rec Fac Gar Fac Upp Upp War Pro Traps Triggered 6 | . . . . . 1 . . . 4 1 . . . . Indirectly . | . . . . . . . . . . . . . . . Trap Hack Attempts . | . . . . . . . . . . . . . . . Triggered . | . . . . . . . . . . . . . . . Disarmed . | . . . . . . . . . . . . . . . Reprogrammed . | . . . . . . . . . . . . . . . Reused . | . . . . . . . . . . . . . . . Traps Extracted . | . . . . . . . . . . . . . . . Installed . | . . . . . . . . . . . . . . . Triggered 32 | . . . . . . . . . . . . 3 28 1 Machines | -11 -10 -10 -10 -9 -8 -8 -8 -6 -6 -5 -5 -5 -5 -4 ---------- Run | Jun Mat Min Exi Min Mat Sto Rec Fac Gar Fac Upp Upp War Pro Machines Disabled 12 | . . . . . 1 . . 2 1 8 . . . . Max in Single Turn 2 | . . . . . 1 . . 1 1 2 . . . . Machines Repaired . | . . . . . . . . . . . . . . . Machines Sabotaged . | . . . . . . . . . . . . . . . Overloaded Fab Kills . | . . . . . . . . . . . . . . . Hacking | -11 -10 -10 -10 -9 -8 -8 -8 -6 -6 -5 -5 -5 -5 -4 --------- Run | Jun Mat Min Exi Min Mat Sto Rec Fac Gar Fac Upp Upp War Pro Machines Accessed 30 | . 2 . 2 . 3 2 6 3 1 8 . . 3 . Terminals 16 | . 2 . . . 3 2 4 1 1 3 . . . . Fabricators 3 | . . . . . . . . 1 . 2 . . . . Repair Stations 1 | . . . . . . . . . . 1 . . . . Recycling Units 2 | . . . . . . . 2 . . . . . . . Scanalyzers 1 | . . . . . . . . . . 1 . . . . Garrison Access 2 | . . . . . . . . 1 . 1 . . . . Total Hacks 80 | . 2 . 4 . 6 5 23 10 2 24 . . 4 . Successful 37 | . . . 4 . 2 1 10 6 1 9 . . 4 . Failed 43 | . 2 . . . 4 4 13 4 1 15 . . . . Catastrophic 9 | . 2 . . . 1 2 . . 1 3 . . . . Database Lockouts . | . . . . . . . . . . . . . . . Manual 46 | . 1 . 1 . 5 7 11 8 1 12 . . . . Terminals 55 | . 2 . . . 6 5 17 8 2 15 . . . . Fabricators 5 | . . . . . . . . 1 . 4 . . . . Repair Stations 1 | . . . . . . . . . . 1 . . . . Recycling Units 6 | . . . . . . . 6 . . . . . . . Scanalyzers 3 | . . . . . . . . . . 3 . . . . Garrison Access 2 | . . . . . . . . 1 . 1 . . . . Terminal Hacks 24 | . . . 4 . 2 1 7 1 1 4 . . 4 . Record 6 | . . . 3 . . . 1 . . . . . 2 . Part Schematic 2 | . . . . . . . 2 . . . . . . . Prototype ID Bank 1 | . . . . . . . 1 . . . . . . . Open Door 2 | . . . . . . . . . . . . . 2 . Level Access Points 1 | . . . . . . . . . . 1 . . . . Branch Access Points 2 | . . . . . 1 1 . . . . . . . . Emergency Access Points 1 | . . . . . . . . . 1 . . . . . Alert Level 2 | . . . . . . . 1 . . 1 . . . . Unreport Threat 1 | . . . . . . . . . . 1 . . . . Investigation Status 1 | . . . . . . . 1 . . . . . . . Registered Components 1 | . . . . . . . . . . 1 . . . . Zone Layout 3 | . . . . . 1 . 1 1 . . . . . . EX-Prototype ID Bank 1 | . . . 1 . . . . . . . . . . . Fabricator Hacks 2 | . . . . . . . . 1 . 1 . . . . Build 2 | . . . . . . . . 1 . 1 . . . . Repair Station Hacks 1 | . . . . . . . . . . 1 . . . . Refit 1 | . . . . . . . . . . 1 . . . . Recycling Unit Hacks . | . . . . . . . . . . . . . . . Scanalyzer 1 | . . . . . . . . . . 1 . . . . Insert Component 1 | . . . . . . . . . . 1 . . . . Garrison Access Hacks 1 | . . . . . . . . 1 . . . . . . Unlock Access 1 | . . . . . . . . 1 . . . . . . Unauthorized Hacks 8 | . . . . . . . 3 3 . 2 . . . . Terminals 6 | . . . . . . . 1 3 . 2 . . . . Track 2 | . . . . . . . 1 1 . . . . . . Botnet 3 | . . . . . . . . 1 . 2 . . . . Operators 1 | . . . . . . . . 1 . . . . . . Fabricators . | . . . . . . . . . . . . . . . Repair Stations . | . . . . . . . . . . . . . . . Recycling Units 2 | . . . . . . . 2 . . . . . . . Reject 2 | . . . . . . . 2 . . . . . . . Scanalyzers . | . . . . . . . . . . . . . . . Garrison Access . | . . . . . . . . . . . . . . . Data Cores Recovered . | . . . . . . . . . . . . . . . Used . | . . . . . . . . . . . . . . . Hacking Detections 21 | . 2 . . . 2 2 4 2 1 8 . . . . Full Trace Events 1 | . . . . . . 1 . . . . . . . . Feedback Events . | . . . . . . . . . . . . . . . Feedback Blocked . | . . . . . . . . . . . . . . . Robot Schematics Acquired . | . . . . . . . . . . . . . . . Robots Built 2 | . . . . . . . . 2 . . . . . . Authchips . | . . . . . . . . . . . . . . . Time 58 | . . . . . . . . 58 . . . . . . Total Robot Build Rating 6 | . . . . . . . . 6 . . . . . . Part Schematics Acquired 2 | . . . . . . . 2 . . . . . . . Parts Built 2 | . . . . . . . . . . 2 . . . . Authchips . | . . . . . . . . . . . . . . . Time 58 | . . . . . . . . . . 58 . . . . Total Part Build Rating 14 | . . . . . . . . . . 14 . . . . Parts Repaired . | . . . . . . . . . . . . . . . Time . | . . . . . . . . . . . . . . . Parts Recycled . | . . . . . . . . . . . . . . . Recycled Matter . | . . . . . . . . . . . . . . . Retrieved Matter . | . . . . . . . . . . . . . . . Retrieved Components . | . . . . . . . . . . . . . . . Parts Scanalyzed . | . . . . . . . . . . . . . . . Part Schematics Acquired . | . . . . . . . . . . . . . . . Parts Damaged . | . . . . . . . . . . . . . . . Bothacking | -11 -10 -10 -10 -9 -8 -8 -8 -6 -6 -5 -5 -5 -5 -4 ------------ Run | Jun Mat Min Exi Min Mat Sto Rec Fac Gar Fac Upp Upp War Pro Used RIF Installer . | . . . . . . . . . . . . . . . Robots Hacked . | . . . . . . . . . . . . . . . Non-combat . | . . . . . . . . . . . . . . . Combat . | . . . . . . . . . . . . . . . Robot Hacks Applied . | . . . . . . . . . . . . . . . Relay Couplers Released 3 | . . . . . . . . . . 3 . . . . Programmers 3 | . . . . . . . . . . 3 . . . . Fabnet Peak Effective % . | . . . . . . . . . . . . . . . Robots Rewired . | . . . . . . . . . . . . . . . Allies Hacked . | . . . . . . . . . . . . . . . Hacks Repelled . | . . . . . . . . . . . . . . . Allies | -11 -10 -10 -10 -9 -8 -8 -8 -6 -6 -5 -5 -5 -5 -4 -------- Run | Jun Mat Min Exi Min Mat Sto Rec Fac Gar Fac Upp Upp War Pro Total Allies 4 | . . . . . . 2 . 2 . . . . . . Largest Group 2 | . . . . . . 2 . 2 2 . . . . . Highest-Rated Group 62 | . . . . . . 62 . 42 42 . . . . . Highest-Rated Ally 31 | . . . . . . 31 . 21 21 . . . . . Total Orders . | . . . . . . . . . . . . . . . Ally Attacks 45 | . . . . . . 30 . 10 5 . . . . . Total Damage 626 | . . . . . . 424 . 136 66 . . . . . Kills 7 | . . . . . . 3 . 3 1 . . . . . Allies Corrupted . | . . . . . . . . . . . . . . . Allies Melted . | . . . . . . . . . . . . . . . Intel | -11 -10 -10 -10 -9 -8 -8 -8 -6 -6 -5 -5 -5 -5 -4 ------- Run | Jun Mat Min Exi Min Mat Sto Rec Fac Gar Fac Upp Upp War Pro Robot Analysis Total . | . . . . . . . . . . . . . . . Derelict Logs Recovered 3 | . . . . 1 . . . . . . 1 1 . . Drone Launches 7 | . . . . . . . . . . 7 . . . . Drone Recoveries 4 | . . . . . . . . . . 4 . . . . Exploration | -11 -10 -10 -10 -9 -8 -8 -8 -6 -6 -5 -5 -5 -5 -4 ------------- Run | Jun Mat Min Exi Min Mat Sto Rec Fac Gar Fac Upp Upp War Pro Turns Passed 6112 | . 159 165 475 102 487 207 302 355 954 1466 173 85 1081 101 Spaces Moved 4112 | 1 112 117 391 91 307 129 220 189 361 741 345 170 882 56 Core 570 | . . . . . . . . . . 50 345 170 5 . Treads . | . . . . . . . . . . . . . . . Legs 1554 | 1 112 117 391 3 . . . . 294 636 . . . . Wheels 1048 | . . . . 88 307 129 220 189 67 48 . . . . Hover 940 | . . . . . . . . . . 7 . . 877 56 Flight . | . . . . . . . . . . . . . . . Fastest Speed 50 | 120 120 120 120 100 100 115 115 115 145 50 50 50 50 135 Average Speed 123 | 120 120 120 120 102 110 115 115 122 213 152 50 50 117 143 Slowest Speed 400 | 120 120 120 190 190 115 115 115 145 231 400 50 50 135 194 Overloaded Moves . | . . . . . . . . . . . . . . . Propulsion Burnouts . | . . . . . . . . . . . . . . . Robots Hopped . | . . . . . . . . . . . . . . . Cave-ins Triggered 1 | . . . . . . . . . . . . . 1 . Exploration Rate (%) 39 | 2 29 41 89 34 28 30 61 5 50 19 59 35 87 19 Regions Visited 14 Branch Regions 9 Pre-discovered Areas 2 | . . . 1 1 . . . . . . . . . . Known Exits Taken 4 | . . . . . 1 1 . 1 . . 1 . . . Unknown Exits Taken 9 | 1 1 1 1 1 . . 1 . . 1 . 1 1 . Scrap Searched 2 | . . . . 1 . . . . . . . 1 . . Spaces Dug 33 | . . . . . 8 9 . 2 . 14 . . . . Terrain Destroyed 156 | . . . . 21 27 40 1 11 13 18 . . 5 20 Melee . | . . . . . . . . . . . . . . . Projectile 67 | . . . . 1 16 12 1 5 1 13 . . 5 13 AOE 89 | . . . . 20 11 28 . 6 12 5 . . . 7 Terrain Rammed . | . . . . . . . . . . . . . . . Walls Destroyed . | . . . . . . . . . . . . . . . Machines Disabled . | . . . . . . . . . . . . . . . Actions | -11 -10 -10 -10 -9 -8 -8 -8 -6 -6 -5 -5 -5 -5 -4 --------- Run | Jun Mat Min Exi Min Mat Sto Rec Fac Gar Fac Upp Upp War Pro Total 4898 | . 129 127 397 96 427 159 267 289 495 1013 344 169 923 63 Wait 513 | . 13 1 . . 64 13 38 71 67 208 . . 38 . Move 4096 | . 111 116 390 90 306 128 219 188 358 740 344 169 881 56 Hop . | . . . . . . . . . . . . . . . Pick Up 22 | . . . 3 . 12 . . . 3 3 . . 1 . Fast Attach 22 | . . 1 . . 9 . 1 . 2 9 . . . . Attach 22 | . . . 1 . 6 3 . 6 3 3 . . . . Detach 17 | . . . . 1 4 3 1 5 3 . . . . . Swap 5 | . 1 . . 2 1 . . . 1 . . . . . Drop 36 | . . 1 3 2 11 . 6 2 2 7 . . 1 1 Fire 140 | . 4 8 . 1 14 12 2 17 33 41 . . 2 6 Melee . | . . . . . . . . . . . . . . . Ram 1 | . . . . . . . . . . 1 . . . . Kick 1 | . . . . . . . . . . 1 . . . . Crush . | . . . . . . . . . . . . . . . Escape Stasis 23 | . . . . . . . . . 23 . . . . . Rewire . | . . . . . . . . . . . . . . . Trap . | . . . . . . . . . . . . . . . Miscellaneous . | . . . . . . . . . . . . . . . Route ------- -11/Junkyard -10/Materials -10/Mines (discovered 2 exits: [*Mat] / *Exi) -10/Exiles -9/Mines -8/Materials -8/Storage -8/Recycling -6/Factory -6/Garrison (discovered 2 exits: *Fac x2) -5/Factory (discovered 5 exits: Fac x4 / [*Upp]) -5/Upper Caves -5/Upper Caves -5/Warlord -4/Proximity Caves History --------- Turn | Location | Event 1 | -11/Junkyard | Discovered new exit (range 0) 1 | -11/Junkyard | Entered Materials 145 | -10/Materials | Discovered new exit (range 14) 160 | -10/Materials | Entered Mines 206 | -10/Mines | Discovered new exit (range 9) 209 | -10/Mines | Met a Derelict bent on vengeance 301 | -10/Mines | Build established: Mutant 320 | -10/Mines | Deemed a non-threat by the Exiles lab entrance 320 | -10/Mines | Discovered new exit (range 5) 325 | -10/Mines | Entered Exiles 355 | -10/Exiles | Met 8R-AWN 372 | -10/Exiles | Met EX-HEX 437 | -10/Exiles | Met EX-DEC 456 | -10/Exiles | Visited The Gauntlet 588 | -10/Exiles | Learned location of Zion (-7) 610 | -10/Exiles | Met EX-BIN 639 | -10/Exiles | Aligned with FarCom system 640 | -10/Exiles | Given EX-Vault access code 667 | -10/Exiles | Opened EX-Vault 676 | -10/Exiles | Found YOLO Cannon 703 | -10/Exiles | Warned to stay clear of 0b10 Research branches 784 | -10/Exiles | Discovered new exit (range 10) 800 | -10/Exiles | Left Exiles lab with YOLO Cannon 800 | -10/Exiles | Entered Mines 890 | -9/Mines | YI-UF0 nonchalantly dropped a Grenade Launcher on the ground 893 | -9/Mines | Discovered new exit (range 9) 902 | -9/Mines | Entered Materials 902 | -8/Materials | Evolved 4 slots: Propulsion x1, Utility x2, Weapon x1 1209 | -8/Materials | Build established: Skirmisher 1261 | -8/Materials | Identified exit to Storage 1389 | -8/Materials | Entered Storage 1421 | -8/Storage | Met a pair of Derelict thieves 1517 | -8/Storage | Destroyed 9 combat bots 1532 | -8/Storage | Identified exit to Recycling 1558 | -8/Storage | Build established: Hacker-Skirmisher 1592 | -8/Storage | Used back door to open Recycling access 1596 | -8/Storage | Entered Recycling 1597 | -8/Recycling | Found Scrap Engine 1836 | -8/Recycling | Discovered new exit (range 15) 1898 | -8/Recycling | Entered Factory 1898 | -6/Factory | Evolved 4 slots: Power x1, Utility x2, Weapon x1 2013 | -6/Factory | Fabricated H-55 Commando? 2252 | -6/Factory | Identified exit to Garrison 2253 | -6/Factory | Entered Garrison 2253 | -6/Garrison | Accompanied by 2 allies 2376 | -6/Garrison | Triggered checkpoint 2384 | -6/Garrison | Triggered checkpoint 2390 | -6/Garrison | Core integrity fell below 50% 2438 | -6/Garrison | Lost 5 parts (1p1n2u1w) 2616 | -6/Garrison | Discovered new exit (range 10) 2639 | -6/Garrison | Attempted to access garrison exit controls, blocked by remote lockdown 2695 | -6/Garrison | Build established: Mutant 2914 | -6/Garrison | Discovered new exit (range 15) 3022 | -6/Garrison | Triggered checkpoint 3046 | -6/Garrison | Core integrity fell below 20% 3207 | -6/Garrison | Entered Factory 3207 | -5/Factory | Evolved 2 slots: Utility x2 3319 | -5/Factory | Build established: Skirmisher 3774 | -5/Factory | Fabricated Matter Neutralizer? 3938 | -5/Factory | Build established: Hacker-Skirmisher 3951 | -5/Factory | Identified exit to Factory 3973 | -5/Factory | Found Prototype Processor 3973 | -5/Factory | Identified Exp. Targeting Computer 4573 | -5/Factory | Core integrity fell below 50% 4655 | -5/Factory | Core integrity fell below 20% 4668 | -5/Factory | Discovered new exit (range 9) 4673 | -5/Factory | Entered Upper Caves 4679 | -5/Upper Caves | Lost 16 parts (2p7n3u4w) 4688 | -5/Upper Caves | Identified exit to Upper Caves 4802 | -5/Upper Caves | Build established: Hacker-Mutant 4804 | -5/Upper Caves | Spotted B-75 Beast 4846 | -5/Upper Caves | Entered another Upper Caves area 4848 | -5/Upper Caves | Attracted the attention of an 0b10 checkpoint 4868 | -5/Upper Caves | Learned Factory garrison access intel 4924 | -5/Upper Caves | Discovered new exit (range 14) 4931 | -5/Upper Caves | Entered Warlord 4957 | -5/Warlord | System corruption cleaned by Quarantine Array 5116 | -5/Warlord | Warlord's base attacked by MAIN.C 5184 | -5/Warlord | Found Signal Generator 5229 | -5/Warlord | Met Warlord 5376 | -5/Warlord | Build established: Hacker-Gunner 5466 | -5/Warlord | Warlord forces counterattacked 5531 | -5/Warlord | Opened side exit 5791 | -5/Warlord | Warlord base infiltrated, sounded retreat 5896 | -5/Warlord | Spotted Striker 5900 | -5/Warlord | Spotted Striker 5961 | -5/Warlord | Spotted Executioner 5980 | -5/Warlord | Crushed by falling debris 5980 | -5/Warlord | System corruption reached 10% 5999 | -5/Warlord | Discovered new exit (range 12) 6011 | -5/Warlord | Lost 3 parts (1p2u) 6012 | -5/Warlord | Entered Proximity Caves 6099 | -4/Proximity Caves | Spotted B-86 Titan 6113 | -4/Proximity Caves | Destroyed by G-67 Veteran with Plasma Rifle Last Messages --------------- 06077_ Vortex penetrates G-67 Veteran. 06077_ G-67 Veteran knocked back. 06079_ System corrupted: Backup Propulsion III rejected. 06080_ Arm. Scrap Engine consumes Backup Propulsion III. 06080_ Vortex penetrates G-67 Veteran. 06080_ G-67 Veteran destroyed. 06085_ Flexi-carbon Leg fries itself beyond repair. 06087_ Overheating: System interference. 06087_ Backup Laser III temporarily disabled. 06097_ System corrupted: Backup Laser III fused. 06097_ Discarded Backup Laser III. 06104_ Vortex penetrates Wall. 06104_ C-30 ARC bursts open, deploying its payload. 06104_ B-60 Warrior unfolds itself. 06107_ Vortex penetrates B-60 Warrior. 06107_ Entropic reaction triggered in Rnf. Fission Core. 06107_ Destroyed Lgt. Antimatter Reactor. 06110_ Vortex penetrates B-60 Warrior. 06110_ B-60 Warrior destroyed. 06110_ Destroyed Adv. Heat Sink. Map ----- +----------------------------------------------------+ | ?????????????????????????????????????????????????? | | ?????????????????????????????????????????????????? | | ?????????????????????????????????????????????????? | | ?????????????????????????????????????????????????? | | ?????????????????????????????????????????????????? | | ?????????????????????????????????????????????????? | | ?????????????????????????????????????????????????? | | ?????????????????????????????????????????????????? | | ?????????????????????????????????????????????????? | | ?????????????????????????????????????????????????? | | ?????????????????????????????????????????????????? | | ?????????????????????????????????????????????????? | | ?????????????????????????????????????????????????? | | ##???????????????????????????????????????????????? | | #####?????????????????#####???? ##??????????????? | | #?????? #????????## ???? #??????????????? | | #?????? ??#####?# ??? #??????????????? | | ## #????? #??# ## ??? #??????????????? | | ### #????? #???# ?? #??????????????? | | #?# #????? #??## ??? #??????????????? | | #?# #????? #### ??? #??????????????? | | #?# #????? ## #?? #???????????????? | | ### #????# ## ##? #???????????????? | | ##### ## ## #????????????????? | | #????????????????? | | @ ##???????????????? | | ### ### ### ###?????????????? | | ###?# #????### g%g ??????? | | #### ## #??##### ### g #???????? | | #?## ##?## ## #???# ;;% #???????? | | ??# ##?## ##?????###; ;??????????? | | ?# # #?## ##???????????##??????????? | | ?# ## #### ##????????????????????????? | | #?# ##" ##?????????????????????????? | | ??# % ##??????????????????????????? | | # " " ! #???????????????????????????? | | " # "## #???????????????????????????? | | ???####?## #??????????????????????????? | | ### ??????????## #??????????????????????????? | | ??##???????????# ##??????????????????????????? | | ???????????????# #???????????????????????????? | | ???????????????# #???????????????????????????? | | ???????????????# #???????????????????????????? | | ???????????????# ???????????????????????????? | | ???????????????# ## #??????????????????????????? | | ???????????????##?# ##??????????????????????????? | | ???????????????????###???????????????????????????? | | ?????????????????????????????????????????????????? | | ?????????????????????????????????????????????????? | | ?????????????????????????????????????????????????? | +----------------------------------------------------+ Best States ------------- Heat Dissipation 47 Energy Generation 31 Energy Capacity 290 Matter Stores 300 Matter Capacity 300 Sight Range 16 Terrain Scan Density 10 Armor Coverage 150 Resistance: EM 15 Evasion (%) 55 Targeting Accuracy 12 Target Analysis 5 Offensive Hacking 10 Defensive Hacking 24 Authchip Count 3 Item Schematics ----------------- Transmission Jammer | -8/Recycling | Hacked Fission Core | -8/Recycling | Hacked Robot Schematics ------------------ None Fabricated ------------ H-55 Commando | x2 | -6/Factory | Preloaded Matter Neutralizer | x2 | -5/Factory | Preloaded Alien Tech Used ----------------- None Achievements -------------- A Powerful Ally? Charge!!! Challenges ------------ None Game ------ Seed DynamicHybridCompressor Manual? 0 Play Time 01:14:22 Cumulative 45.8 hours Start 2023.03.11 @ 19:08:42 End 2023.03.12 @ 14:37:48 Sessions 3 Manual Loads 0 Difficulty Rogue Special Mode None Game No. 58 Rogue 58 Adventurer 0 Explorer 0 Win Type - Total 3 Types 3/0/0/0/0/0/0/0/0 Lore% 35 Gallery% 43 Achievement% 39 Wizard Run 0 Options --------- ASCII 0 Keyboard 0 Movement Numpad Keybinds 0 Fullscreen 1 Font 18/SmallcapsGlow Map View 76x50 Tactical HUD 1 Map Filters NONE Filters NONE Steam 1 RUN: b1413725-9f8a-4210-ae4b-dad62378bf89